bitfinex/quotes_SOLUSD_20260213
["timestamp","ask_amount","ask_price","bid_price","bid_amount"]
[1770946216640,0.77278967,78.535,78.501,0.74975942]
[1770946218539,0.77278967,78.535,78.503,0.74975942]
[1770946218763,0.77278967,78.542,78.503,0.74975942]
[1770946219250,8.90921128,78.54,78.503,0.74975942]
[1770946219940,0.77278967,78.539,78.503,0.74975942]
[1770946220839,0.77278967,78.539,78.504,44.58371547]
[1770946221052,0.77278967,78.539,78.505,0.74975942]
[1770946222145,8.90921128,78.55,78.511,0.74975942]
[1770946222327,9.68200095,78.55,78.511,0.74975942]
[1770946222624,0.77278967,78.549,78.511,0.74975942]
[1770946223044,0.77278967,78.549,78.513,0.74975942]
[1770946223628,9.6878163,78.54,78.513,0.74975942]
[1770946224149,0.77278967,78.539,78.513,0.74975942]
[1770946225642,0.77278967,78.539,78.515,0.74975942]
[1770946226423,41.81278967,78.545,78.515,0.74975942]
[1770946226936,0.77278967,78.539,78.515,0.74975942]
[1770946228554,3.9943698,78.55,78.517,0.74975942]
[1770946228742,0.77278967,78.563,78.521,0.74975942]
[1770946228929,4.76715947,78.56,78.521,0.74975942]
[1770946229835,4.76715947,78.56,78.523,0.74975942]
[1770946230533,0.78014716,78.559,78.523,0.74975942]
[1770946231352,0.78014716,78.559,78.525,0.78050447]
[1770946231562,3.9943698,78.58,78.531,0.78050447]
[1770946231854,3.9943698,78.58,78.541,0.78050447]
[1770946232060,50.86691341,78.637,78.551,0.78050447]
[1770946232061,0.78014716,78.594,78.551,0.78050447]
[1770946232548,4.77451696,78.59,78.551,0.78050447]
[1770946232754,0.78014716,78.589,78.551,0.78050447]
[1770946233332,0.78014716,78.589,78.553,0.78555399]
[1770946233730,0.75492971,78.599,78.561,0.78555399]
[1770946234334,0.75492971,78.609,78.561,0.78555399]
[1770946234859,0.75492971,78.609,78.581,0.78555399]
[1770946235364,0.75492971,78.609,78.582,12.72556056]
[1770946235545,0.75492971,78.599,78.577,12.7262377]
[1770946236760,0.75492971,78.619,78.581,0.78555399]
[1770946237842,0.75492971,78.617,78.583,0.78555399]
[1770946240257,0.75492971,78.617,78.585,0.78555399]
[1770946241353,0.75492971,78.617,78.587,0.78555399]
[1770946242054,31.79288535,78.634,78.586,12.72491283]
[1770946242055,0.75492971,78.634,78.601,0.78555399]
[1770946242847,0.75492971,78.64,78.601,0.78555399]
[1770946243350,0.75492971,78.639,78.601,0.78555399]
[1770946243554,0.75492971,78.639,78.611,0.78555399]
[1770946244948,0.2,78.66,78.631,0.78555399]
[1770946245148,0.95492971,78.66,78.631,0.78555399]
[1770946245570,0.95492971,78.66,78.633,0.78555399]
[1770946245956,0.2,78.66,78.633,0.78555399]
[1770946247673,1e-08,78.67,78.635,0.78555399]
[1770946247971,1e-08,78.67,78.634,158.96431567]
[1770946247972,0.75492972,78.67,78.651,0.78555399]
[1770946248554,1e-08,78.67,78.651,0.78555399]
[1770946248780,1e-08,78.67,78.634,44.51000838]
[1770946248781,0.75492971,78.669,78.634,13.50269924]
[1770946249158,0.75492971,78.669,78.635,0.78555399]
[1770946250673,0.75492971,78.669,78.637,0.78555399]
[1770946251669,0.75492971,78.659,78.627,13.50368457]
[1770946251969,0.75492971,78.659,78.627,12.71813058]
[1770946252280,0.75492971,78.649,78.615,0.78555399]
[1770946252463,0.75492971,78.649,78.618,12.71968353]
[1770946252664,0.75492971,78.639,78.612,12.72065433]
[1770946252868,0.75492971,78.639,78.603,0.78555399]
[1770946252869,0.75492971,78.629,78.603,0.78555399]
[1770946253069,0.75492971,78.619,78.588,0.78555399]
[1770946253275,0.75492971,78.609,78.582,12.72547773]
[1770946253475,0.75492971,78.599,78.574,0.78555399]
[1770946254061,0.75492971,78.599,78.567,0.78555399]
[1770946254883,0.75492971,78.599,78.569,0.78555399]
[1770946256388,0.75492971,78.599,78.57,12.72750413]
[1770946258086,0.75492971,78.597,78.569,0.78555399]
[1770946258286,0.75492971,78.597,78.57,12.72750413]
[1770946258468,0.75492971,78.589,78.563,12.72851419]
[1770946259378,0.75492971,78.589,78.564,0.78555399]
[1770946259701,0.75492971,78.589,78.558,12.72929412]
[1770946260270,0.75492971,78.589,78.559,0.78555399]
[1770946260604,0.72616501,78.569,78.54,10.68179606]
[1770946260784,0.72616501,78.559,78.537,12.73282221]
[1770946261166,0.72616501,78.559,78.529,0.76651894]
[1770946261688,10.68179606,78.55,78.529,0.76651894]
[1770946261891,0.72616501,78.553,78.529,0.76651894]
[1770946262301,0.72616501,78.553,78.521,13.5019655]
[1770946262472,0.72616501,78.549,78.521,13.5019655]
[1770946262663,0.72616501,78.549,78.522,0.76651894]
[1770946262880,41.70616501,78.558,78.522,0.76651894]
[1770946263076,0.72616501,78.557,78.522,0.76651894]
[1770946263704,10.68179606,78.57,78.531,0.76651894]
[1770946263990,40.98,78.568,78.531,0.76651894]
[1770946264299,0.72616501,78.567,78.531,0.76651894]
[1770946265691,0.72616501,78.559,78.531,12.73367823]
[1770946265899,0.72616501,78.559,78.532,0.76651894]
[1770946266198,0.72616501,78.569,78.532,0.76651894]
[1770946266678,13.45383113,78.569,78.532,0.76651894]
[1770946266879,0.72616501,78.568,78.532,0.76651894]
[1770946267800,0.72616501,78.559,78.533,12.73350056]
[1770946268597,0.72616501,78.559,78.533,0.76651894]
[1770946269788,10.68179606,78.56,78.533,0.76651894]
[1770946270387,0.72616501,78.559,78.533,0.76651894]
[1770946270571,0.72616501,78.549,78.521,12.73544656]
[1770946271793,0.72616501,78.549,78.522,0.76651894]
[1770946272801,0.72616501,78.539,78.513,12.73674423]
[1770946273595,0.72616501,78.539,78.508,12.7375554]
[1770946273823,0.72616501,78.529,78.507,0.76651894]
[1770946275173,0.72616501,78.529,78.5,0.76651894]
[1770946276397,10.68179606,78.54,78.501,0.76651894]
[1770946276780,0.72616501,78.539,78.501,0.76651894]
[1770946280001,0.72616501,78.537,78.503,0.76651894]
[1770946280581,0.72616501,78.529,78.503,0.76651894]
[1770946280977,10.68179606,78.54,78.503,0.76651894]
[1770946281491,10.68179606,78.56,78.521,0.76651894]
[1770946281697,0.72616501,78.565,78.531,0.76651894]
[1770946281996,4.61729252,78.562,78.533,0.76651894]
[1770946282391,11.40796107,78.57,78.533,0.76651894]
[1770946282597,0.72616501,78.577,78.541,0.76651894]
[1770946285102,0.72616501,78.577,78.543,0.76651894]
[1770946285303,0.72616501,78.575,78.543,0.76651894]
[1770946286505,0.72616501,78.573,78.545,0.76651894]
[1770946287193,0.72616501,78.572,78.545,0.76651894]
[1770946287603,0.72616501,78.569,78.54,12.73228467]
[1770946288602,0.72616501,78.569,78.54,0.76651894]
[1770946289197,41.06,78.57,78.541,0.76651894]
[1770946289397,41.1,78.575,78.541,0.76651894]
[1770946289911,41.82616501,78.575,78.541,0.76651894]
[1770946290203,0.72616501,78.574,78.541,0.76651894]
[1770946290605,0.72616501,78.574,78.521,53.42]
[1770946290606,0.77415663,78.549,78.522,13.46801866]
[1770946290807,0.77415663,78.539,78.501,0.73273429]
[1770946291009,0.77415663,78.529,78.501,13.47142551]
[1770946292304,41.08,78.533,78.491,85.17051845]
[1770946292305,0.77415663,78.519,78.492,0.73273429]
[1770946292506,0.77415663,78.519,78.492,13.47276577]
[1770946292507,0.77415663,78.518,78.492,13.47276577]
[1770946292888,4.61729252,78.54,78.492,13.47276577]
[1770946292889,0.77415663,78.571,78.5,8.90903466]
[1770946293093,8.90903466,78.54,78.501,0.73273429]
[1770946294598,8.90903466,78.54,78.511,0.74553435]
[1770946295207,12.73134144,78.547,78.511,0.74553435]
[1770946295711,8.90903466,78.54,78.511,0.74553435]
[1770946296888,3.99438689,78.54,78.513,0.74553435]
[1770946297315,12.73134144,78.547,78.513,0.74553435]
[1770946297501,0.79005243,78.548,78.513,0.74553435]
[1770946298497,12.73123098,78.547,78.514,12.73658201]
[1770946298712,13.52128341,78.547,78.515,0.74553435]
[1770946299212,0.79005243,78.546,78.515,0.74553435]
[1770946299621,3.99438689,78.54,78.515,0.74553435]
[1770946299812,0.79005243,78.539,78.502,0.74553435]
[1770946300899,0.79005243,78.539,78.504,0.74553435]
[1770946301529,3.99438689,78.55,78.511,0.74553435]
[1770946302025,0.79005243,78.555,78.511,0.74553435]
[1770946302317,41.12,78.566,78.531,0.74553435]
[1770946302527,17.50456635,78.701,78.503,159.22958356]
[1770946302528,41.12,78.575,78.541,0.74553435]
[1770946303021,41.91005243,78.575,78.543,0.74553435]
[1770946303217,41.12,78.574,78.543,0.74553435]
[1770946303806,0.79005243,78.573,78.543,0.74553435]
[1770946304007,3.99438689,78.57,78.543,0.74553435]
[1770946304408,0.79005243,78.573,78.543,0.74553435]
[1770946305022,0.79005243,78.573,78.544,12.73171725]
[1770946305323,0.79005243,78.573,78.545,0.74553435]
[1770946305920,3.99438689,78.57,78.545,0.74553435]
[1770946308120,3.99438689,78.57,78.546,12.73139306]
[1770946308725,3.99438689,78.57,78.546,13.47692741]
[1770946309419,3.99438689,78.57,78.547,0.74553435]
[1770946309618,0.79005243,78.573,78.547,0.74553435]
[1770946310020,31.81195831,78.587,78.541,12.73220356]
[1770946310021,41.2,78.586,78.551,0.74553435]
[1770946310328,0.79005243,78.587,78.551,0.74553435]
[1770946311730,0.79005243,78.587,78.552,44.55647214]
[1770946311931,0.79005243,78.587,78.553,0.74553435]
[1770946313612,0.79005243,78.587,78.555,0.74553435]
[1770946314911,0.79005243,78.587,78.557,0.74553435]
[1770946317324,0.79005243,78.587,78.559,0.74553435]
[1770946318718,0.79005243,78.587,78.561,0.74553435]
[1770946320519,0.73816039,78.579,78.543,0.74839599]
[1770946320725,0.73816039,78.579,78.534,31.83304339]
[1770946320726,0.73816039,78.569,78.537,0.74839599]
[1770946320925,0.73816039,78.568,78.537,0.74839599]
[1770946322133,41.22,78.568,78.537,0.74839599]
[1770946322337,0.73816039,78.589,78.551,0.74839599]
[1770946322725,0.73816039,78.589,78.553,0.74839599]
[1770946323526,0.73816039,78.579,78.553,0.74839599]
[1770946325848,0.73816039,78.578,78.552,12.73042061]
[1770946326656,0.73816039,78.578,78.553,0.74839599]
[1770946327648,48.64422692,78.58,78.561,0.74839599]
[1770946328839,48.64422692,78.58,78.563,0.74839599]
[1770946329133,0.73816039,78.579,78.562,12.72880018]
[1770946330856,0.73816039,78.579,78.557,12.72961034]
[1770946331551,0.73816039,78.569,78.532,0.74839599]
[1770946331753,0.73816039,78.569,78.532,12.73366271]
[1770946331937,0.73816039,78.569,78.532,44.56746003]
[1770946332251,0.73816039,78.559,78.532,12.73366271]
[1770946332461,0.73816039,78.557,78.532,12.73366271]
[1770946333452,41.44,78.558,78.54,3.99438689]
[1770946333641,41.44,78.575,78.541,0.74839599]
[1770946333958,0.73816039,78.574,78.541,0.74839599]
[1770946335134,42.21816039,78.573,78.541,0.74839599]
[1770946335857,52.63861381,78.58,78.543,0.74839599]
[1770946336042,52.63861381,78.58,78.542,44.56214508]
[1770946336043,48.64422692,78.58,78.551,0.74839599]
[1770946337940,48.64422692,78.58,78.553,0.74839599]
[1770946339061,41.5,78.587,78.555,0.74839599]
[1770946340259,41.5,78.587,78.557,0.74839599]
[1770946340654,0.73816039,78.589,78.557,0.74839599]
[1770946340859,168.45112308,78.875,78.571,0.74839599]
[1770946340860,0.73816039,78.614,78.571,0.74839599]
[1770946341056,0.73816039,78.622,78.591,0.74839599]
[1770946341386,3.99438689,78.63,78.591,0.74839599]
[1770946341387,0.73816039,78.629,78.591,0.74839599]
[1770946342261,49.09775982,78.63,78.603,0.74839599]
[1770946342453,49.09775982,78.63,78.611,0.74839599]
[1770946342654,0.73816039,78.644,78.611,0.74839599]
[1770946342868,0.73816039,78.643,78.611,0.74839599]
[1770946343066,12.71557539,78.644,78.603,0.74839599]
[1770946343067,0.73816039,78.639,78.603,0.74839599]
[1770946343569,41.56,78.638,78.603,0.74839599]
[1770946343770,41.56,78.638,78.611,0.74839599]
[1770946343952,49.08921034,78.64,78.611,0.74839599]
[1770946344569,49.08921034,78.64,78.612,12.72070421]
[1770946344871,49.08921034,78.64,78.613,0.74839599]
[1770946346950,49.08921034,78.64,78.61,3.98347861]
[1770946346951,49.08921034,78.64,78.615,0.74839599]
[1770946347146,49.82737073,78.64,78.615,0.74839599]
[1770946347351,0.73816039,78.639,78.608,0.74839599]
[1770946347560,0.73816039,78.639,78.603,12.72216073]
[1770946347561,0.73816039,78.629,78.592,52.84]
[1770946347869,0.73816039,78.619,78.587,0.74839599]
[1770946348168,4.61729252,78.636,78.578,12.72620835]
[1770946348169,0.73816039,78.609,78.578,12.72620835]
[1770946348463,0.73816039,78.608,78.578,12.72620835]
[1770946349067,0.73816039,78.608,78.574,13.4752522]
[1770946349973,0.73816039,78.599,78.574,12.72685621]
[1770946350159,0.73816039,78.597,78.574,12.72685621]
[1770946350471,0.79117951,78.596,78.574,12.72685621]
[1770946350971,0.79117951,78.596,78.567,12.72799012]
[1770946351968,0.79117951,78.596,78.567,13.51612733]
[1770946353069,12.72225325,78.603,78.561,12.7289622]
[1770946353070,0.78967457,78.589,78.561,12.7289622]
[1770946353974,0.78967457,78.589,78.561,13.50305816]
[1770946354775,0.78967457,78.6,78.571,0.77409596]
[1770946355573,0.78967457,78.609,78.571,0.77409596]
[1770946357275,0.78967457,78.607,78.572,12.72718016]
[1770946357478,0.78967457,78.599,78.573,0.77409596]
[1770946359564,0.78967457,78.598,78.568,12.72774327]
[1770946360666,0.78967457,78.589,78.552,52.82]
[1770946360871,0.78967457,78.579,78.547,13.50532694]
[1770946361764,0.78967457,78.577,78.547,13.50532694]
[1770946363677,0.78967457,78.577,78.548,0.77409596]
[1770946365593,41.72,78.578,78.543,12.73187644]
[1770946365594,0.78967457,78.569,78.543,12.73187644]
[1770946366175,0.78967457,78.569,78.544,0.77409596]
[1770946366890,0.78967457,78.569,78.534,0.77409596]
[1770946367387,12.7294483,78.558,78.529,12.73414916]
[1770946367567,0.78967457,78.557,78.529,13.50824512]
[1770946367774,0.78967457,78.557,78.53,0.77409596]
[1770946369689,0.78967457,78.557,78.531,12.73382485]
[1770946370086,0.78967457,78.549,78.514,12.73643256]
[1770946370288,41.76,78.56,78.515,0.77409596]
[1770946370289,65.17324908,78.56,78.515,0.77409596]
[1770946370592,0.78967457,78.559,78.515,0.77409596]
[1770946370973,42.56967457,78.559,78.521,0.77409596]
[1770946371172,0.78967457,78.558,78.521,0.77409596]
[1770946372882,0.78967457,78.558,78.523,0.77409596]
[1770946375076,0.78967457,78.578,78.531,0.77409596]
[1770946375277,0.78967457,78.577,78.531,0.77409596]
[1770946375983,0.78967457,78.576,78.532,44.56781948]
[1770946376187,0.78967457,78.576,78.541,0.77409596]
[1770946378578,0.78967457,78.574,78.543,0.77409596]
[1770946378774,0.78967457,78.569,78.543,0.77409596]
[1770946380704,3.99290994,78.57,78.543,0.77409596]
[1770946380705,0.72346379,78.567,78.543,0.77409596]
[1770946381081,0.72346379,78.567,78.534,13.48653263]
[1770946381299,12.72782812,78.568,78.529,0.75332841]
[1770946381300,0.72346379,78.559,78.529,0.75332841]
[1770946381792,0.72346379,78.559,78.524,52.88]
[1770946381992,0.72346379,78.549,78.523,12.7350304]
[1770946382881,0.72346379,78.547,78.513,12.73660582]
[1770946383099,0.72346379,78.539,78.507,0.75332841]
[1770946384283,0.72346379,78.539,78.509,12.73728465]
[1770946384699,0.72346379,78.539,78.509,13.49061306]
[1770946385700,0.72346379,78.539,78.502,31.84604802]
[1770946385701,0.72346379,78.529,78.492,12.74015186]
[1770946385885,12.7326899,78.538,78.492,12.74015186]
[1770946385886,41.9,78.536,78.493,0.75332841]
[1770946386197,0.72346379,78.542,78.501,0.75332841]
[1770946386421,0.72346379,78.539,78.503,0.75332841]
[1770946387184,0.72346379,78.529,78.503,0.75332841]
[1770946387885,0.72346379,78.529,78.497,0.75332841]
[1770946388785,0.72346379,78.527,78.497,0.75332841]
[1770946389302,41.88,78.527,78.497,0.75332841]
[1770946389507,0.72346379,78.526,78.497,0.75332841]
[1770946390008,0.72346379,78.519,78.49,13.49375224]
[1770946391891,0.72346379,78.519,78.491,0.75332841]
[1770946393805,0.72346379,78.519,78.493,0.75332841]
[1770946395108,0.72346379,78.517,78.493,0.75332841]
[1770946395890,0.72346379,78.515,78.493,0.75332841]
[1770946396908,0.72346379,78.515,78.494,12.73982724]
[1770946398017,0.72346379,78.515,78.494,0.75332841]
[1770946398714,0.72346379,78.519,78.483,0.75332841]
[1770946398899,0.72346379,78.519,78.49,3.99290994]
[1770946399089,0.72346379,78.519,78.491,0.75332841]
[1770946400107,0.72346379,78.519,78.492,12.74015186]
[1770946400314,0.72346379,78.519,78.492,13.49348027]
[1770946400698,0.72346379,78.519,78.493,0.75332841]
[1770946402815,0.72346379,78.517,78.493,0.75332841]
[1770946403315,0.72346379,78.517,78.484,0.75332841]
[1770946403495,0.72346379,78.509,78.484,0.75332841]
[1770946404000,0.72346379,78.509,78.479,12.74222584]
[1770946404223,0.72346379,78.499,78.479,12.74222584]
[1770946404712,0.72346379,78.499,78.479,13.49555425]
[1770946404915,0.72346379,78.499,78.48,0.75332841]
[1770946405904,0.72346379,78.499,78.481,12.74193753]
[1770946407019,0.72346379,78.499,78.474,0.75332841]
[1770946407993,3.99858226,78.49,78.47,0.2]
[1770946408196,0.72346379,78.489,78.47,0.2]
[1770946408516,0.72346379,78.489,78.47,12.94371114]
[1770946408818,0.72346379,78.489,78.384,38.2970575]
[1770946408819,0.72346379,78.479,78.452,0.75332841]
[1770946409013,0.72346379,78.469,78.45,0.1]
[1770946409208,0.72346379,78.475,78.45,0.85332841]
[1770946410002,3.99858226,78.5,78.452,0.75332841]
[1770946410293,0.72346379,78.497,78.461,0.75332841]
[1770946410499,0.71521271,78.489,78.451,44.61383538]
[1770946410714,0.71521271,78.479,78.452,0.75910385]
[1770946412129,4.71379497,78.47,78.452,0.75910385]
[1770946412426,0.71521271,78.469,78.45,0.1]
[1770946412600,0.71521271,78.459,78.45,0.1]
[1770946412922,0.71521271,78.459,78.44,0.1]
[1770946414923,0.77785734,78.458,78.44,0.1]
[1770946416509,18.13934824,78.468,78.44,0.8721332]
[1770946416715,18.13934824,78.468,78.442,0.7721332]
[1770946416933,3.99858226,78.47,78.442,0.7721332]
[1770946417217,4.61729252,78.472,78.442,0.7721332]
[1770946417420,35.85410198,78.48,78.442,0.7721332]
[1770946417421,3.99858226,78.48,78.442,0.7721332]
[1770946418420,4.61729252,78.49,78.451,0.7721332]
[1770946418721,4.61729252,78.49,78.453,0.7721332]
[1770946418722,3.99858226,78.49,78.453,0.7721332]
[1770946418925,4.7764396,78.49,78.453,0.7721332]
[1770946419727,12.74063881,78.489,78.453,0.7721332]
[1770946420135,0.77785734,78.489,78.453,0.7721332]
[1770946420622,3.99858226,78.49,78.454,44.61212939]
[1770946420829,3.99858226,78.5,78.461,0.7721332]
[1770946421233,0.77785734,78.509,78.471,0.7721332]
[1770946422130,3.99858226,78.5,78.471,0.7721332]
[1770946423033,3.99858226,78.5,78.473,0.7721332]
[1770946425231,4.61729252,78.504,78.475,0.7721332]
[1770946425735,3.99858226,78.51,78.475,0.7721332]
[1770946425912,0.77785734,78.517,78.481,0.7721332]
[1770946426320,0.77785734,78.511,78.481,0.7721332]
[1770946426519,0.77785734,78.509,78.481,0.7721332]
[1770946427533,0.77785734,78.509,78.483,0.7721332]
[1770946427746,0.77785734,78.511,78.483,0.7721332]
[1770946428240,0.77785734,78.519,78.483,0.7721332]
[1770946428448,0.77785734,78.509,78.483,0.7721332]
[1770946429637,0.77785734,78.507,78.478,0.7721332]
[1770946432123,0.77785734,78.499,78.471,0.7721332]
[1770946432538,0.77785734,78.499,78.47,12.74371027]
[1770946432840,0.77785734,78.499,78.467,0.7721332]
[1770946436237,0.77785734,78.497,78.469,0.7721332]
[1770946437336,0.77785734,78.489,78.463,12.74485421]
[1770946437540,0.77785734,78.489,78.463,13.51698741]
[1770946437744,0.77785734,78.489,78.464,0.7721332]
[1770946438142,0.77785734,78.487,78.464,0.7721332]
[1770946440440,0.77785734,78.485,78.457,0.72819208]
[1770946441839,3.99858226,78.5,78.461,0.72819208]
[1770946442233,0.75316528,78.504,78.461,0.72819208]
[1770946442633,0.75316528,78.504,78.442,5.36086188]
[1770946442634,0.75316528,78.518,78.481,0.72819208]
[1770946442928,0.75316528,78.537,78.501,0.72819208]
[1770946444152,0.2,78.54,78.511,0.72819208]
[1770946444347,0.2,78.54,78.521,0.72819208]
[1770946444553,4.61729252,78.553,78.523,0.72819208]
[1770946444740,12.72893299,78.562,78.531,0.72819208]
[1770946446354,0.75316528,78.558,78.533,0.72819208]
[1770946446556,3.99858226,78.55,78.524,0.72819208]
[1770946446731,0.75316528,78.558,78.524,0.72819208]
[1770946447537,0.75316528,78.549,78.523,52.98]
[1770946447856,0.75316528,78.549,78.524,0.72819208]
[1770946448363,0.75316528,78.549,78.525,13.46298991]
[1770946448654,0.75316528,78.549,78.525,0.72819208]
[1770946449849,0.75316528,78.549,78.521,12.73543341]
[1770946449850,0.75316528,78.548,78.521,12.73543341]
[1770946450059,0.75316528,78.548,78.522,0.72819208]
[1770946450236,0.75316528,78.548,78.521,12.73543341]
[1770946450765,0.75316528,78.529,78.496,0.72819208]
[1770946451260,0.75316528,78.519,78.496,0.72819208]
[1770946451446,0.75316528,78.533,78.496,0.72819208]
[1770946451652,0.75316528,78.509,78.473,0.72819208]
[1770946452245,0.75316528,78.499,78.473,0.72819208]
[1770946453560,0.75316528,78.499,78.474,0.72819208]
[1770946454069,12.73917806,78.498,78.474,0.72819208]
[1770946454560,13.49234334,78.498,78.474,0.72819208]
[1770946454771,0.75316528,78.497,78.474,0.72819208]
[1770946456257,0.75316528,78.504,78.476,0.72819208]
[1770946456457,41.96,78.517,78.476,0.72819208]
[1770946456458,3.99858226,78.52,78.481,0.72819208]
[1770946456656,4.75174754,78.52,78.481,0.72819208]
[1770946456864,4.75174754,78.52,78.482,53.02]
[1770946457163,12.73528437,78.522,78.482,53.02]
[1770946457164,12.73528437,78.522,78.483,0.72819208]
[1770946458168,12.73464487,78.526,78.491,0.72819208]
[1770946458366,13.48781015,78.526,78.493,0.72819208]
[1770946458547,0.75316528,78.525,78.493,0.72819208]
[1770946458746,12.73464487,78.526,78.487,0.72819208]
[1770946458747,0.75316528,78.519,78.487,0.72819208]
[1770946458952,0.75316528,78.509,78.482,53.02]
[1770946459146,0.75316528,78.509,78.477,12.74251145]
[1770946459569,3.99858226,78.5,78.477,12.74251145]
[1770946460070,3.99858226,78.5,78.477,0.72819208]
[1770946460370,0.75316528,78.502,78.477,0.72819208]
[1770946461490,31.83987247,78.518,78.481,0.72819208]
[1770946461491,12.73599331,78.518,78.481,0.72819208]
[1770946461857,0.75316528,78.517,78.481,0.72819208]
[1770946463455,31.83566643,78.529,78.48,3.99858226]
[1770946463456,3.99858226,78.53,78.491,0.72819208]
[1770946463650,12.7343654,78.528,78.491,0.72819208]
[1770946463846,0.75316528,78.527,78.491,0.72819208]
[1770946464550,0.75316528,78.527,78.493,0.72819208]
[1770946464752,12.73090682,78.549,78.501,0.72819208]
[1770946464952,12.73090682,78.549,78.511,0.72819208]
[1770946465367,13.4840721,78.549,78.512,12.73690646]
[1770946465576,12.72835247,78.565,78.521,0.72819208]
[1770946466572,0.75316528,78.559,78.521,0.72819208]
[1770946466774,3.99858226,78.55,78.521,0.72819208]
[1770946466974,8.9141639,78.55,78.521,0.72819208]
[1770946467179,0.75316528,78.559,78.521,0.72819208]
[1770946467476,0.75316528,78.567,78.533,0.72819208]
[1770946467681,0.75316528,78.559,78.533,0.72819208]
[1770946468961,0.75316528,78.559,78.526,13.46279335]
[1770946469175,0.75316528,78.559,78.527,0.72819208]
[1770946470167,0.75316528,78.559,78.529,0.72819208]
[1770946471160,0.67079177,78.58,78.531,0.68170013]
[1770946471463,0.67079177,78.579,78.541,0.68170013]
[1770946472279,0.67079177,78.577,78.543,0.68170013]
[1770946472471,0.67079177,78.569,78.543,0.68170013]
[1770946474282,0.67079177,78.569,78.544,12.73171725]
[1770946474879,0.67079177,78.569,78.543,0.68170013]
[1770946475079,0.67079177,78.569,78.544,12.73171725]
[1770946475478,0.71492512,78.576,78.545,0.66753039]
[1770946475880,0.71492512,78.569,78.545,0.66753039]
[1770946476986,0.71492512,78.567,78.533,13.40103095]
[1770946477285,0.71492512,78.567,78.534,0.66753039]
[1770946479888,31.81568077,78.578,78.536,0.66753039]
[1770946479889,0.71492512,78.578,78.536,0.66753039]
[1770946480086,0.71492512,78.575,78.536,0.66753039]
[1770946480676,0.71492512,78.585,78.541,0.66753039]
[1770946481077,0.71492512,78.584,78.541,0.66753039]
[1770946481882,12.72539862,78.583,78.542,44.56214508]
[1770946482090,0.71492512,78.582,78.543,0.66753039]
[1770946482493,0.71492512,78.579,78.543,0.66753039]
[1770946484577,0.71492512,78.579,78.544,12.73171725]
[1770946484892,0.71492512,78.579,78.545,0.66753039]
[1770946485206,0.71492512,78.577,78.545,0.66753039]
[1770946486890,0.71492512,78.577,78.547,0.66753039]
[1770946488798,0.71492512,78.577,78.548,12.7310689]
[1770946488976,0.71492512,78.577,78.549,0.66753039]
[1770946489174,0.71492512,78.587,78.549,0.66753039]
[1770946489377,0.71492512,78.587,78.551,0.66753039]
[1770946490497,4.19090921,78.59,78.553,0.66753039]
[1770946490498,0.2,78.59,78.553,0.66753039]
[1770946490694,0.2,78.59,78.552,44.55647214]
[1770946490695,0.2,78.59,78.555,0.66753039]
[1770946491096,0.71492512,78.589,78.555,0.66753039]
[1770946492881,0.71492512,78.587,78.555,13.39739965]
[1770946493305,0.71492512,78.587,78.556,0.66753039]
[1770946494305,0.71492512,78.579,78.554,53.18]
[1770946494808,0.71492512,78.569,78.544,0.66753039]
[1770946496105,0.71492512,78.575,78.546,0.66753039]
[1770946500289,3.99090921,78.57,78.546,0.66753039]
[1770946500487,3.99090921,78.58,78.548,0.68824451]
[1770946500695,31.80874307,78.595,78.547,12.73123098]
[1770946500696,13.41536184,78.595,78.551,0.68824451]
[1770946500886,13.41536184,78.595,78.55,3.99090921]
[1770946500887,13.41536184,78.595,78.553,0.68824451]
[1770946501285,4.19090921,78.59,78.553,0.68824451]
[1770946501688,13.41628921,78.589,78.553,0.68824451]
[1770946501910,0.69186213,78.588,78.553,0.68824451]
[1770946502901,0.69186213,78.588,78.555,0.68824451]
[1770946503584,0.69186213,78.588,78.547,31.82807745]
[1770946503585,0.69186213,78.579,78.543,0.68824451]
[1770946503791,0.69186213,78.579,78.545,0.68824451]
[1770946506093,0.69186213,78.579,78.546,12.73139306]
[1770946506413,0.2,78.59,78.551,0.68824451]
[1770946508705,13.61619353,78.59,78.553,0.68824451]
[1770946508908,0.69186213,78.589,78.553,0.68824451]
[1770946510623,0.69186213,78.589,78.555,0.68824451]
[1770946511613,0.69186213,78.588,78.557,0.68824451]
[1770946511822,0.69186213,78.579,78.556,12.72977239]
[1770946514212,0.69186213,78.585,78.557,0.68824451]
[1770946516604,0.69186213,78.585,78.559,0.68824451]
[1770946518214,0.69186213,78.585,78.561,0.68824451]
[1770946521133,0.69186213,78.583,78.555,12.72993444]
[1770946521421,0.69186213,78.579,78.554,53.36]
[1770946522017,0.69186213,78.579,78.554,54.04824451]
[1770946522513,0.69186213,78.579,78.554,53.36]
[1770946522717,0.69186213,78.579,78.478,38.3]
[1770946522718,0.69186213,78.569,78.544,12.73160641]
[1770946523227,0.69186213,78.568,78.544,12.73160641]
[1770946524526,0.69186213,78.566,78.543,53.46]
[1770946524711,0.69186213,78.559,78.534,0.68824451]
[1770946525128,0.69186213,78.559,78.529,53.48]
[1770946525730,0.69186213,78.549,78.512,0.68824451]